bitfinex-derivatives/quotes_SOLF0:USTF0_20240930
["timestamp","ask_amount","ask_price","bid_price","bid_amount"]
[1727664115567,3.1825,157.09,157.02,5.6589]
[1727664115866,12.24,157.11,157.02,5.6589]
[1727664116460,12.24,157.11,157.02,2.4752]
[1727664116671,3.1827,157.08,157.03,3.1836]
[1727664117767,3.1828,157.07,157.03,3.1836]
[1727664118167,3.1828,157.07,157.02,5.6589]
[1727664119571,3.183,157.06,157.03,7.83]
[1727664120663,3.1832,157.05,157.03,7.83]
[1727664120869,7.83,157.06,157.02,2.4752]
[1727664121167,3.14460011,157.12,157.01,0.12502]
[1727664121465,11.0133,157.05,157.01,0.12502]
[1727664121671,3.24465596,157.13,157.02,7.83]
[1727664121973,3.183,157.06,157.02,7.83]
[1727664122263,7.83,157.08,157.02,7.83]
[1727664122571,3.1829,157.07,157.02,7.83]
[1727664123670,3.1823,157.1,157.05,7.83]
[1727664123974,7.83,157.1,157.04,7.83]
[1727664124169,11.0127,157.08,157.02,5.8369]
[1727664124369,7.83,157.07,157.01,0.12502]
[1727664124672,7.83,157.07,157.01,7.95502]
[1727664125059,3.1831,157.06,157.01,7.95502]
[1727664125261,7.83,157.07,157.01,7.95502]
[1727664125462,7.83,157.05,157.01,0.12502]
[1727664125771,22.39262072,157.13,157.01,0.12502]
[1727664125772,11.0135,157.04,157.01,0.12502]
[1727664126166,3.1835,157.04,157.01,0.12502]
[1727664131771,2.6862,157.09,157.01,7.95502]
[1727664131968,7.83,157.07,157.01,7.95502]
[1727664132876,3.183,157.06,157.01,7.95502]
[1727664133271,3.183,157.06,157.02,7.83]
[1727664134079,3.183,157.06,157.01,7.95502]
[1727664134268,3.183,157.06,157.01,11.13902]
[1727664135474,7.83,157.04,157.01,0.12502]
[1727664135675,7.83,157.03,157.01,0.12502]
[1727664136176,11.0136,157.03,157.01,0.12502]
[1727664137877,3.1649606,157.05,157.01,0.12502]
[1727664138206,7.83,157.05,157.01,0.12502]
[1727664138376,2.6862,157.09,157.01,7.95502]
[1727664138575,2.6862,157.09,157.02,7.83]
[1727664138790,10.5162,157.09,157.02,7.83]
[1727664139084,3.1827,157.08,157.04,7.83]
[1727664139585,3.1827,157.08,157.02,3.1836]
[1727664141185,3.30662,157.13,157.07,3.1826]
[1727664142082,0.12502,157.13,157.08,3.1824]
[1727664147392,0.12502,157.13,157.06,12.24]
[1727664147574,0.12502,157.13,157.09,3.1823]
[1727664147778,0.12502,157.13,157.06,12.24]
[1727664148390,0.12502,157.13,157.08,3.1825]
[1727664150188,0.12502,157.13,157.09,3.1822]
[1727664151685,0.12502,157.13,157.08,3.1825]
[1727664151887,3.30662,157.13,157.08,3.1825]
[1727664152793,3.30662,157.13,157.07,3.1827]
[1727664153093,3.30662,157.13,157.06,12.24]
[1727664153499,0.12502,157.13,157.09,3.1823]
[1727664154299,0.12502,157.13,157.11,3.1819]
[1727664154486,0.12502,157.13,157.1,12.24]
[1727664154791,0.12502,157.19,157.12,12.24]
[1727664155093,0.12502,157.19,157.1,12.24]
[1727664155094,12.36502,157.19,157.1,12.24]
[1727664155390,0.12502,157.19,157.1,12.24]
[1727664156695,3.1807,157.18,157.12,3.1816]
[1727664158288,0.12502,157.19,157.09,6.98876089]
[1727664158587,0.12502,157.19,157.15,3.1811]
[1727664158991,0.12502,157.19,157.15,4.4595]
[1727664159187,0.12502,157.19,157.15,1.2784]
[1727664159488,0.12502,157.25,157.17,12.24]
[1727664159791,0.12502,157.25,157.19,15.4202]
[1727664159792,3.30432,157.25,157.19,15.4202]
[1727664159987,0.12502,157.25,157.19,12.24]
[1727664160190,0.12502,157.25,157.21,12.24]
[1727664160390,0.12502,157.25,157.22,5.7966]
[1727664160691,0.12502,157.25,157.22,2.6169]
[1727664162094,0.12502,157.25,157.22,5.7966]
[1727664162894,3.1784,157.29,157.25,3.1791]
[1727664163392,0.12502,157.31,157.28,15.4184]
[1727664163695,0.12502,157.31,157.28,12.24]
[1727664164293,0.12502,157.31,157.24,12.24]
[1727664164493,3.1785,157.29,157.24,15.4193]
[1727664165296,0.12502,157.31,157.22,5.7966]
[1727664165297,3.1787,157.28,157.22,5.7966]
[1727664165499,12.24,157.3,157.22,2.6169]
[1727664166100,3.179,157.26,157.22,2.6169]
[1727664168209,3.1792,157.25,157.22,2.6169]
[1727664168505,3.1792,157.25,157.2,1.2612]
[1727664168506,12.24,157.28,157.2,1.2612]
[1727664168699,3.179,157.26,157.2,1.2612]
[1727664168905,12.24,157.28,157.2,1.2612]
[1727664169103,12.24,157.3,157.2,1.2612]
[1727664169304,3.28839088,157.31,157.21,12.24]
[1727664169305,3.1786,157.28,157.21,12.24]
[1727664169803,3.1786,157.28,157.21,15.4198]
[1727664170709,3.1786,157.28,157.22,3.1797]
[1727664170906,3.1786,157.28,157.23,12.24]
[1727664171096,3.1784,157.29,157.23,12.24]
[1727664172317,3.1784,157.29,157.23,15.4195]
[1727664172512,0.12502,157.31,157.23,12.24]
[1727664172722,3.30312,157.31,157.25,12.24]
[1727664173021,0.12502,157.31,157.25,15.4191]
[1727664173515,3.30312,157.31,157.25,15.4191]
[1727664173905,3.30312,157.31,157.26,2.5183]
[1727664174105,0.12502,157.31,157.26,6.9705]
[1727664174722,0.12502,157.31,157.27,12.24]
[1727664175424,0.12502,157.31,157.27,15.4187]
[1727664175826,0.12502,157.31,157.27,12.24]
[1727664176017,0.12502,157.31,157.26,6.9706]
[1727664178226,0.12502,157.31,157.28,3.1785]
[1727664178620,0.12502,157.31,157.27,12.24]
[1727664179025,0.12502,157.31,157.27,15.4187]
[1727664179829,0.12502,157.31,157.27,12.24]
[1727664180425,0.12502,157.31,157.28,3.1784]
[1727664181038,0.12502,157.31,157.29,15.4182]
[1727664181627,0.12502,157.37,157.29,12.24]
[1727664181933,0.12502,157.37,157.31,12.24]
[1727664182932,3.30172,157.37,157.32,3.1775]
[1727664183330,0.12502,157.37,157.33,15.4173]
[1727664184552,15.3337,157.47,157.36,3.1769]
[1727664184832,3.29744329,157.43,157.36,3.1769]
[1727664185038,3.1758,157.42,157.36,1.2666]
[1727664185234,3.1758,157.42,157.37,15.4167]
[1727664185425,3.1758,157.42,157.37,12.24]
[1727664187128,0.12502,157.43,157.37,12.24]
[1727664187432,0.12502,157.43,157.38,12.24]
[1727664187841,3.30062,157.43,157.4,12.24]
[1727664190031,0.12502,157.43,157.4,12.24]
[1727664190839,3.30062,157.43,157.4,12.24]
[1727664191154,0.12502,157.43,157.37,13.5068]
[1727664191528,3.1757,157.42,157.37,13.5068]
[1727664192134,3.30062,157.43,157.37,16.6834]
[1727664192640,3.1757,157.42,157.37,16.6834]
[1727664192844,0.12502,157.43,157.38,3.1765]
[1727664193029,0.12502,157.43,157.37,13.5068]
[1727664193631,0.12502,157.43,157.36,1.2666]
[1727664194641,12.24,157.42,157.35,1.2435]
[1727664195737,3.1765,157.39,157.33,3.1775]
[1727664195941,12.24,157.42,157.32,13.5848]
[1727664197038,3.1763,157.39,157.34,3.1772]
[1727664197948,3.1766,157.38,157.33,3.1774]
[1727664198436,12.24,157.42,157.32,13.5848]
[1727664198635,12.24,157.42,157.32,16.7624]
[1727664198944,12.24,157.4,157.32,1.3448]
[1727664199338,3.1773,157.35,157.3,1.2401]
[1727664199544,12.24,157.4,157.3,1.2401]
[1727664199545,3.12580564,157.38,157.3,1.2401]
[1727664199845,12.24,157.4,157.3,1.2401]
[1727664200343,12.24,157.38,157.3,1.2401]
[1727664200549,15.47803198,157.38,157.29,1.3119]
[1727664200842,3.1774,157.34,157.29,1.3119]
[1727664201042,15.47803198,157.38,157.29,1.3119]
[1727664201241,3.1775,157.33,157.29,1.3119]
[1727664202544,3.1777,157.32,157.29,1.3119]
[1727664202741,3.1777,157.32,157.25,0.12502]
[1727664202948,12.24,157.33,157.25,0.12502]
[1727664203645,3.178,157.31,157.25,0.12502]
[1727664203852,3.178,157.31,157.25,3.30412]
[1727664205050,0.12502,157.37,157.26,12.24]
[1727664205238,12.24,157.36,157.26,12.24]
[1727664205646,3.1782,157.3,157.26,12.24]
[1727664206249,12.24,157.36,157.26,12.24]
[1727664206451,3.178,157.31,157.26,12.24]
[1727664206748,12.24,157.36,157.26,12.24]
[1727664207653,3.1781,157.31,157.26,12.24]
[1727664209756,3.1781,157.3,157.25,3.30412]
[1727664210053,12.24,157.34,157.25,0.12502]
[1727664210444,3.1783,157.3,157.25,0.12502]
[1727664211250,3.13673535,157.29,157.25,0.12502]
[1727664211443,3.1789,157.27,157.25,0.12502]
[1727664211645,3.18731246,157.29,157.25,0.12502]
[1727664211858,3.1789,157.26,157.25,0.12502]
[1727664212751,69.427,157.35,157.25,0.12502]
[1727664212752,12.24,157.31,157.25,0.12502]
[1727664212951,3.1786,157.28,157.25,0.12502]
[1727664214252,3.1788,157.27,157.25,0.12502]
[1727664217559,3.11951746,157.29,157.25,0.12502]
[1727664217755,3.1789,157.26,157.25,0.12502]
[1727664235584,11.0089,157.26,157.25,0.12502]
[1727664237579,3.1789,157.26,157.25,0.12502]
[1727664239483,3.16223466,157.29,157.25,0.12502]
[1727664239688,68.74,157.32,157.25,0.12502]
[1727664240485,3.1786,157.28,157.25,0.12502]
[1727664240690,3.23562573,157.28,157.25,0.12502]
[1727664240978,12.23,157.31,157.25,0.12502]
[1727664241783,3.1787,157.28,157.25,0.12502]
[1727664241985,6.4194172,157.28,157.25,0.12502]
[1727664242189,3.1787,157.28,157.25,0.12502]
[1727664242484,3.1789,157.26,157.25,0.12502]
[1727664243384,6.42820905,157.26,157.25,0.12502]
[1727664243590,3.1789,157.26,157.25,0.12502]
[1727664244199,6.33719912,157.26,157.25,0.12502]
[1727664247308,12.23,157.29,157.25,0.12502]
[1727664247600,3.1788,157.27,157.25,0.12502]
[1727664248100,6.42217494,157.28,157.25,0.12502]
[1727664248287,3.1786,157.28,157.25,0.12502]
[1727664248489,3.1987109,157.28,157.25,0.12502]
[1727664248689,3.1788,157.27,157.25,0.12502]
[1727664250897,3.1789,157.26,157.25,0.12502]
[1727664255612,3.1801,157.2,157.19,0.12502]
[1727664255908,12.23,157.23,157.19,0.12502]
[1727664256213,3.1801,157.2,157.19,0.12502]
[1727664263103,12.23,157.23,157.19,0.12502]
[1727664264202,12.23,157.21,157.19,0.12502]
[1727664264511,3.1801,157.2,157.19,0.12502]
[1727664267607,11.0001,157.2,157.19,0.12502]
[1727664270504,7.82,157.2,157.14,3.9467]
[1727664270704,7.82,157.16,157.14,3.9467]
[1727664271703,7.82,157.16,157.13,0.12502]
[1727664271704,7.82,157.15,157.13,0.12502]
[1727664272913,11.0013,157.15,157.13,0.12502]
[1727664277421,3.1813,157.14,157.13,0.12502]
[1727664278004,3.1821,157.11,157.05,7.82]
[1727664278213,7.82,157.1,157.05,7.82]
[1727664279307,7.82,157.13,157.07,11.12772]
[1727664279507,7.82,157.13,157.08,3.8308]
[1727664279910,11.0016,157.13,157.08,3.8308]
[1727664280915,7.82,157.13,157.08,3.8308]
[1727664281119,3.1818,157.12,157.08,3.8308]
[1727664283021,11.0018,157.12,157.08,3.8308]
[1727664291514,3.182,157.11,157.08,3.8308]
[1727664292819,3.1824,157.09,157.07,0.12502]
[1727664293019,7.82,157.09,157.07,0.12502]
[1727664293613,3.1826,157.08,157.07,0.12502]
[1727664295227,11.0026,157.08,157.07,0.12502]
[1727664300626,3.1826,157.08,157.07,0.12502]
[1727664300830,11.0026,157.08,157.07,0.12502]
[1727664301525,3.10888192,157.1,157.07,0.12502]
[1727664301830,11.0025,157.09,157.07,0.12502]
[1727664302034,3.14229227,157.08,157.07,0.12502]
[1727664303125,14.14489227,157.08,157.07,0.12502]
[1727664305027,10.96229227,157.08,157.02,1.3363]
[1727664305226,7.82,157.03,157.02,1.3363]
[1727664305431,7.82,157.03,157.01,1.45212]
[1727664305734,11.0036,157.03,157.01,0.12502]
[1727664305936,7.82,157.02,157.01,0.12502]
[1727664306731,10.9713738,157.02,157.01,0.12502]
[1727664307237,3.1823,157.1,157.01,0.12502]
[1727664307448,88.04502,157.13,157.01,0.12502]
[1727664307655,7.82,157.05,157.01,0.12502]
[1727664307856,88.04502,157.13,157.01,0.12502]
[1727664307857,3.1641195,157.07,157.01,0.12502]
[1727664308153,7.82,157.05,157.01,0.12502]
[1727664308853,3.1828,157.07,157.01,3.30902]
[1727664309059,7.82,157.08,157.02,7.82]
[1727664309353,7.82,157.08,157.02,11.7009]
[1727664309551,11.02270015,157.08,157.02,11.7009]
[1727664309756,14.20530015,157.08,157.02,11.7009]
[1727664309941,14.20530015,157.08,157.02,14.8847]
[1727664310140,6.38530015,157.08,157.02,14.8847]
[1727664310355,7.82,157.04,157.02,3.8809]
[1727664310557,7.82,157.04,157.02,1.2745]
[1727664312546,7.82,157.06,157.02,1.2745]
[1727664314061,11.003,157.06,157.02,1.2745]
[1727664314761,6.36626953,157.08,157.04,7.82]
[1727664314949,7.82,157.12,157.07,7.82]
[1727664315662,11.002,157.11,157.05,11.0032]
[1727664315862,7.82,157.11,157.05,7.82]
[1727664316061,68.92502,157.13,157.05,7.82]
[1727664316062,11.0022,157.1,157.05,7.82]
[1727664316573,14.21511771,157.1,157.05,7.82]
[1727664316754,14.21511771,157.1,157.04,7.82]
[1727664316954,11.03291771,157.1,157.04,7.82]
[1727664317151,7.82,157.08,157.04,7.82]
[1727664317665,12.24,157.11,157.03,3.1836]
[1727664317871,12.24,157.11,157.02,7.0407]
[1727664318160,12.24,157.11,157.02,3.857]
[1727664318464,12.24,157.09,157.02,3.857]
[1727664318758,15.35286016,157.09,157.02,2.5804]
[1727664319469,3.183,157.06,157.02,2.5804]
[1727664320460,15.35286016,157.09,157.01,0.12502]
[1727664320662,12.24,157.07,157.01,0.12502]
[1727664321155,3.1834,157.04,157.01,0.12502]
[1727664321356,6.39629476,157.04,157.01,0.12502]
[1727664321564,12.24,157.04,157.01,0.12502]
[1727664322258,15.40930312,157.04,157.01,0.12502]
[1727664322860,3.16930312,157.04,157.01,0.12502]
[1727664323163,3.1781,157.1,157.01,0.12502]
[1727664323164,12.24,157.05,157.01,0.12502]
[1727664324067,15.42683069,157.05,157.01,0.12502]
[1727664324759,3.18683069,157.05,157.01,0.12502]
[1727664324961,3.1831,157.06,157.01,0.12502]
[1727664325162,84.17225886,157.09,157.01,0.12502]
[1727664327172,75.11465886,157.09,157.01,12.36502]
[1727664327863,71.93225886,157.09,157.01,12.36502]
[1727664328073,68.82,157.09,157.04,3.1834]
[1727664328566,3.1826,157.08,157.03,2.6856]
[1727664328766,12.24,157.11,157.03,2.6856]
[1727664329175,3.1825,157.09,157.03,5.8692]
[1727664329469,3.19930903,157.08,157.03,5.8692]
[1727664330262,6.38200903,157.08,157.03,2.6856]
[1727664330563,12.24,157.11,157.03,2.6856]
[1727664331065,12.24,157.09,157.01,0.12502]
[1727664331367,3.19166433,157.08,157.01,3.30882]
[1727664331565,3.19166433,157.08,157.01,0.12502]
[1727664331869,12.24,157.09,157.01,0.12502]
[1727664332273,3.183,157.06,157.01,0.12502]
[1727664332569,15.39841999,157.09,157.01,0.12502]
[1727664332964,3.1832,157.05,157.01,0.12502]
[1727664334275,15.39841999,157.09,157.01,0.12502]
[1727664335273,3.15841999,157.09,157.01,0.12502]
[1727664335468,12.24,157.09,157.01,0.12502]
[1727664335669,15.4355764,157.09,157.01,0.12502]
[1727664335872,3.1955764,157.09,157.01,12.36502]
[1727664336072,3.1824,157.09,157.02,3.1836]
[1727664336279,3.25196893,157.08,157.02,3.1836]
[1727664336577,3.1824,157.09,157.03,3.1834]
[1727664336774,3.18123932,157.1,157.03,12.24]
[1727664336966,0.12502,157.13,157.03,12.24]
[1727664337276,3.1823,157.1,157.04,3.1833]
[1727664337572,6.37500899,157.1,157.04,3.1833]
[1727664337774,3.1823,157.1,157.04,3.1833]
[1727664338372,6.29986014,157.1,157.04,3.1833]
[1727664339465,11.05448761,157.13,157.03,12.24]
[1727664339670,3.182,157.11,157.05,3.1832]
[1727664341079,11.05448761,157.13,157.05,3.1832]
[1727664341270,3.1822,157.1,157.05,3.1832]
[1727664342578,3.1822,157.1,157.04,3.1833]
[1727664343180,3.1822,157.1,157.05,3.1832]
[1727664344477,3.182,157.11,157.05,3.1832]
[1727664345177,3.1822,157.1,157.05,3.1832]
[1727664345871,3.1822,157.1,157.03,12.24]
[1727664345872,3.260162,157.1,157.03,12.24]
[1727664346066,3.1826,157.08,157.03,15.4235]
[1727664347179,3.183,157.06,157.02,5.7945]
[1727664347479,10.92946761,157.11,157.02,2.6108]
[1727664347886,3.1827,157.08,157.03,3.1835]
[1727664348177,3.1827,157.08,157.02,2.6108]
[1727664348365,3.1827,157.08,157.03,12.24]
[1727664348566,3.1823,157.1,157.03,12.24]
[1727664349168,11.08522372,157.13,157.03,12.24]
[1727664349374,3.1824,157.09,157.05,3.183]
[1727664350471,3.1822,157.1,157.06,3.1829]
[1727664350678,11.08522372,157.13,157.05,12.24]
[1727664350877,0.12502,157.13,157.05,12.24]
[1727664351081,11.08522372,157.13,157.05,12.24]
[1727664351386,3.182,157.11,157.06,3.1829]
[1727664351778,0.12502,157.13,157.06,3.1829]
[1727664352080,3.182,157.11,157.06,3.1829]
[1727664352780,3.1823,157.1,157.05,3.1831]
[1727664353081,0.12502,157.13,157.03,12.24]
[1727664353275,11.08522372,157.13,157.03,12.24]
[1727664353472,11.08522372,157.13,157.05,3.1831]
[1727664354076,3.1823,157.1,157.05,3.1831]
[1727664354267,11.08522372,157.13,157.06,3.1828]
[1727664355482,3.182,157.11,157.06,3.1828]
[1727664356073,11.08522372,157.13,157.05,12.24]
[1727664356372,14.26692372,157.13,157.07,3.1826]
[1727664356678,11.08522372,157.13,157.07,3.1826]
[1727664357084,3.1818,157.12,157.07,3.1826]
[1727664357485,11.08522372,157.13,157.07,3.1826]
[1727664357685,14.26682372,157.13,157.08,3.1824]
[1727664357985,11.08522372,157.13,157.07,12.24]
[1727664358487,0.12502,157.13,157.1,3.182]
[1727664358676,0.12502,157.13,157.07,12.24]
[1727664359183,0.12502,157.13,157.09,12.24]
[1727664359578,0.12502,157.13,157.11,3.1818]
[1727664360480,0.12502,157.13,157.12,3.1818]
[1727664360886,0.12502,157.13,157.09,12.24]
[1727664361290,0.12502,157.13,157.07,12.24]
[1727664361584,0.12502,157.13,157.06,1.3094]
[1727664361781,3.1821,157.11,157.07,3.1826]
[1727664363581,0.12502,157.13,157.06,1.3094]
[1727664363890,3.1822,157.1,157.06,4.4922]
[1727664364388,0.12502,157.13,157.03,12.24]
[1727664364579,0.12502,157.13,157.02,2.6108]
[1727664364580,12.24,157.12,157.02,3.8825]
[1727664365378,0.12502,157.13,157.02,3.8825]
[1727664365379,12.24,157.1,157.02,2.578]
[1727664365588,12.24,157.1,157.01,0.12502]
[1727664365589,12.24,157.08,157.01,0.12502]
[1727664365991,10.96020372,157.08,157.01,0.12502]
[1727664366295,15.49922818,157.08,157.01,0.12502]
[1727664366479,3.183,157.06,157.01,0.12502]
[1727664367682,14.14300372,157.07,157.02,3.1837]
[1727664367887,3.25922818,157.08,157.01,0.12502]
[1727664368092,3.17231978,157.09,157.02,12.24]
[1727664368279,3.1827,157.08,157.03,3.1835]
[1727664368690,3.1827,157.08,157.02,12.24]
[1727664368691,1.3154,157.11,157.02,12.24]
[1727664369585,3.1825,157.09,157.04,3.1833]
[1727664369793,10.94496037,157.12,157.02,12.24]
[1727664369989,10.94496037,157.12,157.04,12.24]
[1727664370185,3.182,157.11,157.06,3.1828]
[1727664371096,0.12502,157.13,157.04,12.24]
[1727664371287,3.1818,157.12,157.07,3.1827]
[1727664371995,0.12502,157.13,157.06,12.24]
[1727664372394,3.182,157.11,157.07,3.1828]
[1727664372693,3.182,157.11,157.02,2.5432]
[1727664372694,3.182,157.11,157.04,12.24]
[1727664372890,0.12502,157.13,157.04,12.24]
[1727664373089,3.1822,157.1,157.06,3.1829]
[1727664373492,3.1825,157.09,157.05,3.1831]
[1727664373695,0.12502,157.13,157.04,12.24]
[1727664374194,0.12502,157.13,157.04,3.1833]
[1727664374599,3.1825,157.09,157.04,3.1833]
[1727664374897,3.18766693,157.1,157.02,14.7832]
[1727664375101,12.24,157.12,157.02,14.7832]
[1727664375489,0.12502,157.13,157.07,3.1827]
[1727664375691,3.1821,157.11,157.04,12.24]
[1727664376299,3.1821,157.11,157.06,3.1828]
[1727664377702,0.12502,157.13,157.04,12.24]
[1727664377901,0.12502,157.13,157.08,3.1825]
[1727664377902,3.30672,157.13,157.08,3.1825]
[1727664378199,3.30672,157.13,157.05,1.2892]
[1727664378200,0.12502,157.13,157.05,1.2892]
[1727664378400,3.1821,157.11,157.06,3.1829]
[1727664378800,0.12502,157.13,157.05,1.2892]
[1727664379098,12.36502,157.13,157.02,14.7832]
[1727664379790,3.1826,157.08,157.03,3.1835]
[1727664380196,3.21981178,157.1,157.02,2.5432]
[1727664380498,12.24,157.11,157.02,2.5432]
[1727664380798,3.1825,157.09,157.02,5.7268]
[1727664380991,3.20866285,157.08,157.02,2.5432]
[1727664381191,12.24,157.11,157.02,2.5432]
[1727664381798,3.1827,157.08,157.03,3.1836]
[1727664381992,6.34517441,157.08,157.03,3.1836]
[1727664382388,3.16247441,157.08,157.03,3.1836]
[1727664382595,3.1828,157.07,157.03,3.1836]
[1727664383393,3.2315978,157.08,157.01,0.12502]
[1727664383589,12.24,157.09,157.01,0.12502]
[1727664383792,15.3623445,157.09,157.01,0.12502]
[1727664384399,3.1831,157.06,157.01,0.12502]
[1727664384695,15.3623445,157.09,157.01,0.12502]
[1727664384889,12.24,157.07,157.01,0.12502]
[1727664385594,15.46649697,157.07,157.01,0.12502]
[1727664385995,3.1835,157.04,157.01,0.12502]
[1727664386194,15.46649697,157.07,157.01,0.12502]
[1727664386993,3.1833,157.05,157.01,0.12502]
[1727664388090,15.46649697,157.07,157.01,0.12502]
[1727664388290,6.40929697,157.07,157.01,3.30882]
[1727664389593,3.183,157.06,157.01,3.30882]
[1727664390394,12.24,157.06,157.01,0.12502]
[1727664390587,12.24,157.03,157.01,0.12502]
[1727664390786,3.1838,157.02,157.01,0.12502]
[1727664391391,3.1838,157.02,156.93,2.6093]
[1727664391392,12.24,157.03,156.93,2.6093]
[1727664391602,3.1841,157.01,156.95,3.31012]
[1727664391796,12.24,157.03,156.95,3.31012]
[1727664392100,3.1842,157.0,156.95,3.31012]
[1727664392299,3.21468958,156.99,156.95,0.12502]
[1727664392500,12.24,156.99,156.95,0.12502]
[1727664392695,3.1846,156.98,156.95,0.12502]
[1727664392999,3.19812394,156.99,156.95,0.12502]
[1727664393192,3.1845,156.99,156.95,0.12502]
[1727664393504,3.19199091,156.98,156.95,0.12502]
[1727664396404,12.24,156.99,156.95,0.12502]
[1727664396598,12.24,156.99,156.89,0.12502]
[1727664396599,12.24,156.97,156.89,0.12502]
[1727664396794,3.1854,156.95,156.89,3.31132]
[1727664396996,12.24,156.97,156.89,3.31132]
[1727664397298,3.1854,156.94,156.89,3.31132]
[1727664397603,12.24,156.97,156.89,3.31132]
[1727664397804,3.1852,156.95,156.9,3.1862]
[1727664398298,12.24,156.97,156.89,0.12502]
[1727664398492,3.1855,156.94,156.89,0.12502]
[1727664399198,3.21685611,156.93,156.89,0.12502]
[1727664399698,3.24624071,157.01,156.89,0.12502]
[1727664399906,15.48624071,157.01,156.9,12.24]
[1727664400205,3.1846,156.98,156.92,3.1857]
[1727664400410,12.24,156.98,156.89,0.12502]
[1727664401006,3.1851,156.96,156.9,3.1861]
[1727664402001,3.1851,156.96,156.91,3.186]
[1727664402700,3.1851,156.96,156.89,0.12502]
[1727664402999,3.1851,156.96,156.9,3.1862]
[1727664403699,3.1851,156.96,156.91,3.186]
[1727664404201,3.1848,156.97,156.91,3.186]
[1727664404506,3.1848,156.97,156.92,3.1858]
[1727664405106,3.1848,156.97,156.91,3.1859]
[1727664405704,3.1857,156.93,156.89,0.12502]
[1727664405908,3.16984871,156.93,156.89,0.12502]
[1727664406207,3.1859,156.92,156.89,0.12502]
[1727664406410,6.4332254,156.92,156.89,0.12502]
[1727664408595,12.24,156.9,156.89,0.12502]
[1727664408812,15.4262,156.9,156.89,0.12502]
[1727664409110,12.24,156.9,156.84,0.12518]
[1727664409300,15.427,156.87,156.84,0.12518]
[1727664409804,3.1872,156.86,156.84,0.12518]
[1727664410001,6.31818711,156.86,156.84,0.12518]
[1727664410609,3.1869,156.87,156.84,0.12518]
[1727664410913,12.24,156.89,156.84,0.12518]
[1727664411209,3.1863,156.9,156.84,3.31258]
[1727664411711,16.65764065,156.93,156.84,0.12518]
[1727664412111,3.1861,156.91,156.85,3.1872]
[1727664412606,6.33094065,156.93,156.87,3.1867]
[1727664413014,3.14534065,156.93,156.84,1.41668]
[1727664413210,81.24502,156.95,156.84,1.41668]
[1727664413905,12.24,156.92,156.84,1.41668]
[1727664414097,15.50389161,156.92,156.84,1.41668]
[1727664414302,3.1864,156.89,156.84,1.41668]
[1727664415007,3.1862,156.9,156.84,4.60388]
[1727664415513,15.50389161,156.92,156.84,1.41668]
[1727664416020,3.1868,156.88,156.84,1.41668]
[1727664417216,3.1868,156.88,156.84,4.60408]
[1727664417405,3.1868,156.88,156.84,1.41668]
[1727664417607,3.187,156.87,156.84,0.12518]
[1727664417807,12.24,156.9,156.84,0.12518]
[1727664418106,15.50389161,156.92,156.84,0.12518]
[1727664418307,15.50389161,156.92,156.84,3.31248]
[1727664418912,3.1863,156.9,156.85,3.1871]
[1727664419118,3.1863,156.9,156.84,1.43078]
[1727664419420,3.26389161,156.92,156.84,1.43078]
[1727664419608,3.1862,156.91,156.86,3.187]
[1727664420116,3.18895126,156.92,156.84,1.43078]